Cogmind - Beta 14 @@@ ROGUE MODE // 2024.08.29 @ 17:20:31 Player: Kunndt Result: Destroyed by as-94032 with Assembled Blade Performance ------------- Evolutions (0) 0 Regions Visited (0) 0 Robots Destroyed (0) 0 Value Destroyed (0) 0 Prototype IDs (0) 0 Alien Tech Used (0) 0 Bonus (0) 0 TOTAL SCORE: 0 Bonus ------- None Cogmind --------- Core Integrity 0/250 Matter 279/300 Energy 99/100 System Corruption 0% Temperature Cool (0) Movement Core (50) Location -11/Scrapyard Parts ------- > --- POWER (1) -------- (None) > --- PROPULSION (2) --- (None) > --- UTILITY (2) ------ (None) > --- WEAPON (2) ------- (None) > --- INVENTORY (5) ---- Light Ion Engine Light Treads Light Treads Light Assault Rifle Peak State ------------ > --- POWER ------------ Light Ion Engine > --- PROPULSION ------- Aluminum Leg Aluminum Leg > --- UTILITY ---------- Small Storage Unit > --- WEAPON ----------- Medium Laser Assault Rifle > --- INVENTORY -------- Light Ion Engine [Rating: 6] Favorites ----------- Power Light Ion Engine Engine Light Ion Engine Propulsion Aluminum Leg Leg Aluminum Leg Utility Small Storage Unit Storage Small Storage Unit Weapon Medium Laser Energy Gun Medium Laser Ballistic Gun Assault Rifle Build | -11 ------- Run | Yrd Slots Evolved . | . Power . | . Propulsion . | . Utility . | . Weapon . | . Parts Attached 6 | 6 Power 1 | 1 Engine 1 | 1 Core . | . Reactor . | . Propulsion 2 | 2 Treads . | . Leg 2 | 2 Wheel . | . Hover . | . Flight . | . Utility 1 | 1 Device . | . Storage 1 | 1 Processor . | . Hackware . | . Protection . | . Artifact . | . Weapon 2 | 2 Energy Gun 1 | 1 Energy Cannon . | . Ballistic Gun 1 | 1 Ballistic Cannon . | . Launcher . | . Special Weapon . | . Impact Weapon . | . Slashing Weapon . | . Piercing Weapon . | . Special Melee Weapon . | . Unidentified Prototypes . | . Parts Lost . | . Power . | . Propulsion . | . Utility . | . Weapon . | . Highest Loss Streak . | . To Critical Strikes . | . Average Slot Usage (%) . | . Peak Build Rating 6 | 6 Average Rating 5 | 5 On Entrance . | . Naked Turns . | . Heaviest Build 12 | 12 Greatest Support 20 | 20 Greatest Overweight (x) . | . Average Overweight (x) . | . Largest Inventory Capacity 8 | 8 Average Capacity 7 | 7 Most Carried 4 | 4 Average Carried 3 | 3 Final Capacity 5 | 5 Final Carried 4 | 4 Class Distribution -------------------- None Dominant Class ---------------- None Resources | -11 ----------- Run | Yrd Matter Collected 245 | 245 Remotely . | . Salvage Created . | . Parts . | . Haulers Intercepted . | . Recyclers Shooed . | . Parts Field Recycled . | . Retrieved Matter . | . Parts Self-Destructed . | . Prevented . | . Kills | -11 ------- Run | Yrd Combat Hostiles Destroyed . | . Classes Destroyed . | . Best Kill Streak . | . Combat Bots Only . | . Max Kills in Single Turn . | . Gunslinging . | . Exploded . | . Melee . | . Uniques/NPCs Destroyed . | . Combat | -11 -------- Run | Yrd Hostile Shots Fired 28 | 28 Missed 8 | 8 Damage Taken 363 | 363 Core 275 | 275 Absorbed by Shields . | . Core Remaining (%) . | . Volleys Fired 2 | 2 Largest 2 | 2 Hottest 70 | 70 Shots Fired 4 | 4 Gun 4 | 4 Cannon . | . Launcher . | . Special . | . Kinetic 2 | 2 Thermal 2 | 2 Explosive . | . Electromagnetic . | . Robot Hit Streak 1 | 1 Robot Miss Streak 2 | 2 Penetration Max . | . Secondary Targets . | . Shots Hit Robots 1 | 1 Core Hits . | . Critical Kills . | . Critical Parts Destroyed . | . Critical Strikes . | . Melee Attacks . | . Impact . | . Slashing . | . Piercing . | . Sneak Attacks . | . Combat Hostiles . | . Follow-up Attacks . | . Damage Inflicted 38 | 38 Guns 38 | 38 Cannons . | . Explosions . | . Melee . | . Ramming . | . Kinetic 26 | 26 Thermal 12 | 12 Explosive . | . Electromagnetic . | . Impact . | . Slashing . | . Piercing . | . Highest Corruption . | . Average Corruption . | . Corruption Purged . | . Corruption Blocked . | . Overload Shots . | . Overflow Damage . | . Projectiles . | . Explosions . | . Melee . | . Knockbacks . | . Impact . | . Kinetic . | . Secondary . | . Self-Inflicted Damage . | . Shots . | . Rammed . | . Targets Rammed . | . Kicked . | . Crushed . | . Highest Temperature 18 | 18 Average Temperature 10 | 10 Received Heat Transfer 60 | 60 Siege Activations . | . Robots Corrupted . | . Combat Hostiles . | . Parts Fried . | . Impact Corruptions . | . Robots Melted . | . Combat Hostiles . | . Parts Melted . | . Heat Transferred 37 | 37 Parts Sabotaged . | . Parts Stolen . | . Parts Stripped . | . Power Chain Reactions . | . Alert | -11 ------- Run | Yrd Peak Influence 15 | 15 Initial . | . Average . | . Maximum Alert Level . | . Low Security (%) 100 | 100 Level 1 . | . Level 2 . | . Level 3 . | . Level 4 . | . Level 5 . | . High Security . | . Max Security . | . Squads Dispatched . | . Investigation . | . Extermination . | . Reinforcement . | . Assault . | . Garrison . | . Intercept . | . Searches Triggered . | . Construction Impeded . | . Haulers Reinforced . | . Active Scanning Responses . | . Cargo Convoy Interrupts . | . Stealth | -11 --------- Run | Yrd Distress Signals . | . Communications Jammed . | . Distress Signals . | . Times Spotted 25 | 25 Peak Tracking Total 19 | 19 Tactical Retreats 1 | 1 Traps | -11 ------- Run | Yrd Traps Triggered . | . Indirectly . | . Trap Hack Attempts . | . Triggered . | . Disarmed . | . Reprogrammed . | . Reused . | . Traps Extracted . | . Installed . | . Triggered . | . Machines | -11 ---------- Run | Yrd Machines Disabled . | . Max in Single Turn . | . Machines Repaired . | . Machines Dismantled . | . Machines Sabotaged . | . Overloaded Fab Kills . | . Hacking | -11 --------- Run | Yrd Machines Accessed . | . Terminals . | . Fabricators . | . Repair Stations . | . Recycling Units . | . Scanalyzers . | . Garrison Access . | . Total Hacks . | . Successful . | . Failed . | . Catastrophic . | . Database Lockouts . | . Manual . | . Terminals . | . Fabricators . | . Repair Stations . | . Recycling Units . | . Scanalyzers . | . Garrison Access . | . Terminal Hacks . | . Fabricator Hacks . | . Repair Station Hacks . | . Recycling Unit Hacks . | . Scanalyzer . | . Garrison Access Hacks . | . Unauthorized Hacks . | . Terminals . | . Fabricators . | . Repair Stations . | . Recycling Units . | . Scanalyzers . | . Garrison Access . | . Data Cores Recovered . | . Used . | . Hacking Detections . | . Full Trace Events . | . Feedback Events . | . Feedback Blocked . | . Robot Schematics Acquired . | . Robots Built . | . Authchips . | . Time . | . Total Robot Build Rating . | . Part Schematics Acquired . | . Parts Built . | . Authchips . | . Time . | . Total Part Build Rating . | . Parts Repaired . | . Time . | . Parts Recycled . | . Recycled Matter . | . Retrieved Matter . | . Retrieved Components . | . Parts Scanalyzed . | . Part Schematics Acquired . | . Parts Damaged . | . Bothacking | -11 ------------ Run | Yrd Used RIF Installer . | . Robots Hacked . | . Non-combat . | . Combat . | . Robot Hacks Applied . | . Relay Couplers Released . | . Fabnet Peak Effective % . | . Robots Rewired . | . Allies Hacked . | . Hacks Repelled . | . Allies | -11 -------- Run | Yrd Total Allies . | . Largest Group . | . Highest-Rated Group . | . Highest-Rated Ally . | . Total Orders . | . Ally Attacks . | . Total Damage . | . Kills . | . Allies Corrupted . | . Allies Melted . | . Intel | -11 ------- Run | Yrd Robot Analysis Total . | . Derelict Logs Recovered . | . Drone Launches . | . Drone Recoveries . | . Exploration | -11 ------------- Run | Yrd Turns Passed 3045 | 3045 Spaces Moved 736 | 736 Core 32 | 32 Treads . | . Legs 704 | 704 Wheels . | . Hover . | . Flight . | . Fastest Speed 50 | 50 Average Speed 116 | 116 Slowest Speed 120 | 120 Overloaded Moves . | . Propulsion Burnouts . | . Robots Hopped . | . Cave-ins Triggered . | . Exploration Rate (%) 72 | 72 Regions Visited . Branch Regions . Pre-discovered Areas . | . Known Exits Taken . | . Unknown Exits Taken . | . Scrap Searched . | . Spaces Dug . | . Terrain Destroyed . | . Melee . | . Projectile . | . AOE . | . Terrain Rammed . | . Walls Destroyed . | . Machines Disabled . | . Actions | -11 --------- Run | Yrd Total 2913 | 2913 Wait 2165 | 2165 Move 736 | 736 Hop . | . Pick Up 4 | 4 Fast Attach 6 | 6 Attach . | . Detach . | . Swap . | . Drop . | . Fire 2 | 2 Melee . | . Ram . | . Kick . | . Crush . | . Escape Stasis . | . Rewire . | . Trap . | . Miscellaneous . | . Route ------- -11/Scrapyard (discovered 1 exit: [*Mat]) History --------- Turn | Location | Event 20 | -11/Scrapyard | Discovered new exit (range 16) 3003 | -11/Scrapyard | Assembled infested the area 3030 | -11/Scrapyard | Released all parts (6) 3034 | -11/Scrapyard | Core integrity fell below 50% 3046 | -11/Scrapyard | Core integrity fell below 20% 3046 | -11/Scrapyard | Destroyed by as-94032 with Assembled Blade Last Messages --------------- [Achievement: Curiosity Killed The Cat] 03003_ T-07 Excavator is excavating. 03025_ T-07 Excavator destroyed. 03030_ Released Assault Rifle. 03030_ Released Lgt. Ion Engine. 03030_ Released Sml. Storage Unit. 03030_ Released Aluminum Leg. 03030_ Released Med. Laser. 03037_ as-70356 destroyed. 03038_ The unstable cave ceiling collapses. 03038_ as-73226 destroyed. 03038_ as-87967 destroyed. 03038_ as-96728 destroyed. 03038_ as-67281 destroyed. 03040_ as-33821 destroyed. 03040_ D-53 Grenadier destroyed. 03042_ as-38741 destroyed. 03042_ as-41421 destroyed. 03042_ as-21251 destroyed. 03042_ as-19495 destroyed. Map ----- +----------------------------------------------------+ | ?????????????????????????????????????????????????? | | ?????????????????????????????????????????????????? | | ?????????????????????????????????????????????????? | | ?????????????????????????????????????????????????? | | ?????????????????????????????????????????????????? | | ?????????????????????????????????????????????????? | | ??????????????????? ?????????????????????????????? | | ??????????????????" ???????????????????????????### | | ??????????????????" ???????????????????????????# # | | ?????????????????? ??????????????##########???# | | ??????????????????" ??????????????# #???# | | ?????????????????? ???????####???# #???# | | ??????????????????# ???#### # ##### #???# | | ???????????????##?#|#### ## #???# | | ???????????????? #% ## # #???# | | ????????????????? #= ## a # #??## | | ?????????????????? ## #??# | | ??????????????????# # #??# | | ??????????????????# # =!= #??## | | ?????????????????## # [ ### #####???### | | ?????????????????# % % # # ########## | | ?????????????????# a % = | | ?????????????????# % %% | | ?????????????????#### ## ### ###### | | ????????????????????### a ## ## ?# | | ??????????????????????# a@a # ## ## ## | | ??????????????????????# a## ## ## ## | | ???????????????????##?# ## ## ## ## | | ??????######?###### ### ## ## ## ## | | ??????# ### ## ## ## ## ### | | ??????# # # ## ## ########## | | ??????# # # ## ## ? | | ??##??# # # ## ## ? | | ??# #?# # # ## ## #?????##### | | ??# ?# # # ## ## #?????????? | | ?### ## # # ## ## #?????????? | | ?# # # ??#######?#####?# #?????????? | | ?# ##### ################### ########??# | | ?### # #??# | | ???# #### #??# | | ???# # #??### ######################## #??# | | ???# ############ #??????????????????????# #??# | | ???# #?? ## #??????????????????????# #??# | | ???# #? ## #??????????????????????# #??# | | ???# # # #???????????????????#### #### | | ???# # # #??????##########???# # | | ???# # #??????# #???# # | | ???# ########??## ##?????# #???# # | | ???# ########### ####### ##### | | ???# = | +----------------------------------------------------+ Best States ------------- Heat Dissipation 25 Energy Generation 10 Energy Capacity 125 Matter Stores 285 Matter Capacity 300 Sight Range 16 Terrain Scan Density 10 Evasion (%) 55 Item Schematics ----------------- None Robot Schematics ------------------ None Fabricated ------------ Nothing Alien Tech Used ----------------- None Achievements -------------- Curiosity Killed The Cat Challenges ------------ None Game ------ Seed GravmagGunStorage Manual? 0 Play Time 00:11:14 Cumulative 22.5 hours Start 2024.08.29 @ 17:14:02 End 2024.08.29 @ 17:20:31 Sessions 0 Manual Loads 0 Difficulty Rogue Special Mode None Game No. 20 Rogue 20 Adventurer 0 Explorer 0 Win Type - Total 0 Types 0/0/0/0/0/0/0/0/0 Lore% 12 Gallery% 25 Achievement% 23 Wizard Run 0 Options --------- Layout 1 ASCII 0 Keyboard 1 Movement Numpad Keybinds 0 Fullscreen 1 Font 16/Tamsyn Map View 55x38 Zoom Use 0% Tactical HUD 1 Map Filters NONE Filters NONE Steam 1 RUN: 3a9b3266-6f8b-40e9-887d-e94024971693